fUST/lending_fUST_20250809
["ID","MTS","AMOUNT","RATE_DAILY","PERIOD"]
[378093646,1754724644177,-800.0,0.00022774,2]
[378093647,1754724644187,-800.0,0.00022792,2]
[378093648,1754724644196,-800.0,0.00022798,2]
[378093649,1754724644206,-151.0,0.000228,5]
[378093650,1754724644216,-800.0,0.00022818,2]
[378093651,1754724644225,-800.0,0.00022851,2]
[378093652,1754724644234,-642.49314909,0.00022854,2]
[378093653,1754724644244,-800.0,0.00022855,2]
[378093654,1754724644253,-800.0,0.00022857,2]
[378093655,1754724644263,-800.0,0.00022862,2]
[378093656,1754724644272,-800.0,0.00022866,2]
[378093657,1754724644282,-160.0,0.00023,2]
[378093658,1754724644291,-151.0,0.00023,7]
[378093659,1754724644301,-200.0,0.00023005,15]
[378093660,1754724644310,-300.0,0.00023005,15]
[378093661,1754724644320,-198.0,0.00023013,2]
[378093662,1754724644330,-460.0,0.00023013,2]
[378093663,1754724644339,-460.0,0.00023013,2]
[378093664,1754724644349,-460.0,0.00023013,2]
[378093665,1754724644358,-460.0,0.00023013,2]
[378093666,1754724644368,-460.0,0.00023013,2]
[378093667,1754724644378,-592.60485104,0.00023013,2]
[378093668,1754724644387,-581.22,0.00023013,2]
[378093669,1754724644397,-460.0,0.00023013,2]
[378093670,1754724644407,-460.0,0.00023013,2]
[378093671,1754724644416,-490.57,0.00023013,2]
[378093672,1754724644426,-460.0,0.00023013,2]
[378093673,1754724644436,-460.0,0.00023013,2]
[378093674,1754724644445,-460.0,0.00023013,2]
[378093675,1754724644454,-657.82,0.00023013,2]
[378093676,1754724644464,-460.0,0.00023013,2]
[378093677,1754724644473,-460.0,0.00023013,2]
[378093678,1754724644483,-348.19280875,0.00023013,2]
[378093679,1754724644492,-460.0,0.00023013,2]
[378093680,1754724644502,-460.0,0.00023013,2]
[378093681,1754724644511,-460.0,0.00023013,2]
[378093682,1754724644521,-401.80871424,0.00023013,2]
[378093683,1754724644530,-460.0,0.00023013,2]
[378093684,1754724644540,-460.0,0.00023013,2]
[378093685,1754724644550,-460.0,0.00023013,2]
[378093686,1754724644559,-966.34,0.00023013,2]
[378093687,1754724644568,-581.49,0.00023013,2]
[378093688,1754724644578,-916.7,0.00023013,2]
[378093689,1754724644588,-895.43,0.00023013,2]
[378093690,1754724644597,-460.0,0.00023013,2]
[378093691,1754724644606,-460.0,0.00023013,2]
[378093692,1754724644616,-460.0,0.00023013,2]
[378093693,1754724644625,-703.52,0.00023013,2]
[378093694,1754724644634,-529.6885551,0.00023013,2]
[378093695,1754724644644,-460.0,0.00023013,2]
[378093696,1754724644653,-460.0,0.00023013,2]
[378093697,1754724644663,-492.1,0.00023013,2]
[378093698,1754724644672,-496.59,0.00023013,2]
[378093699,1754724644682,-460.0,0.00023013,2]
[378093700,1754724644691,-460.0,0.00023013,2]
[378093701,1754724644700,-460.0,0.00023013,2]
[378093702,1754724644709,-1178.95,0.00023013,2]
[378093703,1754724644719,-158.93522068,0.00023013,2]
[378093704,1754724644728,-537.62,0.00023013,2]
[378093705,1754724644737,-660.18,0.00023013,2]
[378093706,1754724644746,-460.0,0.00023013,2]
[378093707,1754724644756,-1596.52,0.00023013,2]
[378093708,1754724644765,-1858.25,0.00023013,2]
[378093709,1754724644774,-3661.51,0.00023013,2]
[378093710,1754724644784,-473.56707233,0.00023013,2]
[378093711,1754724644793,-460.0,0.00023013,2]
[378093712,1754724644802,-460.0,0.00023013,2]
[378093713,1754724644812,-1505.19,0.00023013,2]
[378093714,1754724644822,-460.0,0.00023013,2]
[378093715,1754724644831,-460.0,0.00023013,2]
[378093716,1754724644841,-460.0,0.00023013,2]
[378093717,1754724644857,-607.45,0.00023013,2]
[378093718,1754724644878,-460.0,0.00023013,2]
[378093719,1754724644889,-460.0,0.00023013,2]
[378093720,1754724644898,-460.0,0.00023013,2]
[378093721,1754724644908,-460.0,0.00023013,2]
[378093722,1754724644917,-862.76,0.00023013,2]
[378093723,1754724644927,-1636.8,0.00023013,2]
[378093724,1754724644936,-642.42,0.00023013,2]
[378093725,1754724644946,-210.58,0.00023013,2]
[378093726,1754724644955,-485.8,0.00023013,2]
[378093727,1754724644964,-460.0,0.00023013,2]
[378093728,1754724644974,-460.0,0.00023013,2]
[378093729,1754724644983,-460.0,0.00023013,2]
[378093730,1754724644992,-1330.45,0.00023013,2]
[378093731,1754724645002,-460.0,0.00023013,2]
[378093732,1754724645012,-460.0,0.00023013,2]
[378093733,1754724645024,-934.32,0.00023013,2]
[378093734,1754724645034,-777.22,0.00023013,2]
[378093735,1754724645043,-460.0,0.00023013,2]
[378093736,1754724645052,-460.0,0.00023013,2]
[378093737,1754724645072,-1125.8,0.00023013,2]
[378093738,1754724645082,-460.0,0.00023013,2]
[378093739,1754724645094,-460.0,0.00023013,2]
[378093740,1754724645104,-460.0,0.00023013,2]
[378093741,1754724645114,-460.0,0.00023013,2]
[378093742,1754724645125,-1049.54,0.00023013,2]
[378093743,1754724645136,-500.31,0.00023013,2]
[378093744,1754724645146,-2205.13,0.00023013,2]
[378093745,1754724645156,-460.0,0.00023013,2]
[378093746,1754724645166,-864.55,0.00023013,2]
[378093747,1754724645176,-595.38,0.00023013,2]
[378093748,1754724645186,-500.0,0.00023073,2]
[378093749,1754724645196,-500.0,0.00023073,2]
[378093750,1754724645206,-151.0,0.000231,6]
[378093751,1754724645216,-1500.0,0.00023168,2]
[378093752,1754724645227,-1500.0,0.00023168,2]
[378093753,1754724645237,-1000.0,0.00023168,2]
[378093754,1754724645247,-1500.0,0.00023168,2]
[378093755,1754724645257,-214.72311449,0.00023168,2]
[378093756,1754724645267,-1500.0,0.00023168,2]
[378093757,1754724645277,-1500.0,0.00023168,2]
[378093758,1754724645287,-1500.0,0.00023168,2]
[378093759,1754724645296,-538.63950387,0.00023168,2]
[378093760,1754724645306,-1500.0,0.00023168,2]
[378093761,1754724645316,-151.0,0.000232,5]
[378093762,1754724645326,-1519.42120563,0.00023209,2]
[378093763,1754724645336,-899.39,0.00023213,2]
[378093764,1754724645346,-160.0,0.00023231,2]
[378093765,1754724645355,-842.95011917,0.00023237,2]
[378093766,1754724645365,-12666.14847857,0.00023237,2]
[378093767,1754724645376,-160.0,0.00023237,2]
[378093768,1754724645386,-160.0,0.00023242,2]
[378093769,1754724645396,-160.0,0.00023242,2]
[378093770,1754724645406,-216.61183532,0.00023242,2]
[378093771,1754724645416,-231.92402426,0.00023242,2]
[378093772,1754724645427,-160.0,0.00023242,2]
[378093773,1754724645437,-160.0,0.00023242,2]
[378093774,1754724645447,-461.55179734,0.00023242,2]
[378093775,1754724645457,-312.16666667,0.00023242,2]
[378093776,1754724645467,-160.0,0.00023242,2]
[378093777,1754724645477,-160.0,0.00023242,2]
[378093778,1754724645486,-215.40758176,0.00023244,2]
[378093779,1754724645496,-460.0,0.00023287,2]
[378093780,1754724645506,-460.0,0.00023287,2]
[378093781,1754724645515,-460.0,0.00023287,2]
[378093782,1754724645525,-581.22,0.00023287,2]
[378093783,1754724645534,-460.0,0.00023287,2]
[378093784,1754724645544,-460.0,0.00023287,2]
[378093785,1754724645554,-490.57,0.00023287,2]
[378093786,1754724645564,-460.0,0.00023287,2]
[378093787,1754724645574,-460.0,0.00023287,2]
[378093788,1754724645584,-657.82,0.00023287,2]
[378093789,1754724645594,-460.0,0.00023287,2]
[378093790,1754724645605,-460.0,0.00023287,2]
[378093791,1754724645614,-460.0,0.00023287,2]
[378093792,1754724645624,-460.0,0.00023287,2]
[378093793,1754724645634,-460.0,0.00023287,2]
[378093794,1754724645644,-151.0,0.00023287,7]
[378093795,1754724645654,-460.0,0.00023287,2]
[378093796,1754724645664,-460.0,0.00023287,2]
[378093797,1754724645676,-460.0,0.00023287,2]
[378093798,1754724645687,-966.34,0.00023287,2]
[378093799,1754724645697,-581.49,0.00023287,2]
[378093800,1754724645707,-916.7,0.00023287,2]
[378093801,1754724645718,-895.43,0.00023287,2]
[378093802,1754724645730,-460.0,0.00023287,2]
[378093803,1754724645742,-460.0,0.00023287,2]
[378093804,1754724645752,-460.0,0.00023287,2]
[378093805,1754724645762,-152.2066,0.00023287,7]
[378093806,1754724645771,-703.52,0.00023287,2]
[378093807,1754724645781,-460.0,0.00023287,2]
[378093808,1754724645791,-496.59,0.00023287,2]
[378093809,1754724645801,-492.1,0.00023287,2]
[378093810,1754724645811,-460.0,0.00023287,2]
[378093811,1754724645820,-460.0,0.00023287,2]
[378093812,1754724645831,-460.0,0.00023287,2]
[378093813,1754724645844,-1178.95,0.00023287,2]
[378093814,1754724645854,-537.62,0.00023287,2]
[378093815,1754724645863,-660.18,0.00023287,2]
[378093816,1754724645874,-263.23497626,0.00023287,2]
[378093817,1754724645884,-1596.52,0.00023287,2]
[378093818,1754724645895,-1858.25,0.00023287,2]
[378093819,1754724645908,-3661.51,0.00023287,2]
[378093820,1754724645917,-460.0,0.00023287,2]
[378093821,1754724645927,-460.0,0.00023287,2]
[378093822,1754724645938,-1505.19,0.00023287,2]
[378093823,1754724645947,-460.0,0.00023287,2]
[378093824,1754724645957,-460.0,0.00023287,2]
[378093825,1754724645967,-460.0,0.00023287,2]
[378093826,1754724645977,-607.45,0.00023287,2]
[378093827,1754724645987,-460.0,0.00023287,2]
[378093828,1754724645998,-460.0,0.00023287,2]
[378093829,1754724646007,-460.0,0.00023287,2]
[378093830,1754724646018,-594.6725337,0.00023287,2]
[378093831,1754724646030,-862.76,0.00023287,2]
[378093832,1754724646040,-1636.8,0.00023287,2]
[378093833,1754724646052,-642.42,0.00023287,2]
[378093834,1754724646062,-485.8,0.00023287,2]
[378093835,1754724646072,-460.0,0.00023287,2]
[378093836,1754724646082,-460.0,0.00023287,2]
[378093837,1754724646097,-460.0,0.00023287,2]
[378093838,1754724646115,-1330.45,0.00023287,2]
[378093839,1754724646126,-460.0,0.00023287,2]
[378093840,1754724646136,-460.0,0.00023287,2]
[378093841,1754724646145,-934.32,0.00023287,2]
[378093842,1754724646155,-777.22,0.00023287,2]
[378093843,1754724646165,-153.41258083,0.00023287,2]
[378093844,1754724646176,-1125.8,0.00023287,2]
[378093845,1754724646186,-460.0,0.00023287,2]
[378093846,1754724646196,-460.0,0.00023287,2]
[378093847,1754724646206,-460.0,0.00023287,2]
[378093848,1754724646215,-460.0,0.00023287,2]
[378093849,1754724646225,-1049.54,0.00023287,2]
[378093850,1754724646234,-500.31,0.00023287,2]
[378093851,1754724646244,-2205.13,0.00023287,2]
[378093852,1754724646254,-864.55,0.00023287,2]
[378093853,1754724646264,-595.38,0.00023287,2]
[378093854,1754724646274,-151.0,0.000233,8]
[378093855,1754724646283,-1000.0,0.00023321,2]
[378093856,1754724646294,-1000.0,0.00023321,2]
[378093857,1754724646304,-1000.0,0.00023321,2]
[378093858,1754724646314,-1000.0,0.00023321,2]
[378093859,1754724646324,-250.0,0.00023321,2]
[378093860,1754724646334,-1000.0,0.00023321,2]
[378093861,1754724646344,-896.13352281,0.00023321,2]
[378093862,1754724646354,-1000.0,0.00023321,2]
[378093863,1754724646364,-1006.70178999,0.00023321,2]
[378093864,1754724646374,-500.0,0.00023321,2]
[378093865,1754724646383,-1000.0,0.00023321,2]
[378093866,1754724646393,-1200.0,0.00023321,2]
[378093867,1754724646402,-1000.0,0.00023321,2]
[378093868,1754724646415,-1012.33653393,0.00023321,2]
[378093869,1754724646425,-410.00511873,0.00023321,2]
[378093870,1754724646434,-502.38549031,0.00023321,2]
[378093871,1754724646445,-314.45901419,0.00023321,2]
[378093872,1754724646454,-500.0,0.00023321,2]
[378093873,1754724646464,-1000.0,0.00023321,2]
[378093874,1754724646475,-1001.22332869,0.00023321,2]
[378093875,1754724646485,-1000.0,0.00023321,2]
[378093876,1754724646495,-1000.0,0.00023321,2]
[378093877,1754724646505,-1000.0,0.00023321,2]
[378093878,1754724646514,-1000.0,0.00023321,2]
[378093879,1754724646523,-1000.0,0.00023321,2]
[378093880,1754724646533,-1000.0,0.00023321,2]
[378093881,1754724646543,-500.0,0.00023321,2]
[378093882,1754724646552,-205.90481094,0.00023321,2]
[378093883,1754724646562,-1069.07647635,0.00023321,2]
[378093884,1754724646571,-1001.02231364,0.00023321,2]
[378093885,1754724646581,-1000.0,0.00023321,2]
[378093886,1754724646590,-1000.0,0.00023321,2]
[378093887,1754724646600,-500.0,0.00023344,2]
[378093888,1754724646609,-374.48,0.00023348,3]
[378093889,1754724646619,-748.94,0.00023349,3]
[378093890,1754724646628,-11524.70379572,0.00023387,2]
[378093891,1754724646637,-151.0,0.000234,9]
[378093892,1754724646646,-2637.42419911,0.00023409,2]
[378093893,1754724646655,-151.0,0.00023414,2]
[378093894,1754724646664,-151.0,0.00023414,2]
[378093895,1754724646674,-300.0,0.00023414,2]
[378093896,1754724646683,-151.0,0.00023414,2]
[378093897,1754724646693,-500.0,0.00023414,2]
[378093898,1754724646861,-300.0,0.00023414,2]
[378093899,1754724646871,-151.0,0.00023414,2]
[378093900,1754724646880,-151.0,0.00023414,2]
[378093901,1754724646890,-500.0,0.00023414,2]
[378093902,1754724646899,-300.0,0.00023414,2]
[378093903,1754724646909,-151.0,0.00023414,2]
[378093904,1754724646918,-151.0,0.00023414,2]
[378093905,1754724646928,-500.0,0.00023414,2]
[378093906,1754724646937,-300.0,0.00023414,2]
[378093907,1754724646946,-151.0,0.00023414,2]
[378093908,1754724646955,-151.0,0.00023414,2]
[378093909,1754724646965,-151.0,0.00023414,2]
[378093910,1754724646974,-500.0,0.00023414,2]
[378093911,1754724646983,-300.0,0.00023414,2]
[378093912,1754724646996,-151.0,0.00023414,2]
[378093913,1754724647007,-151.0,0.00023414,2]
[378093914,1754724647016,-151.0,0.00023414,2]
[378093915,1754724647033,-500.0,0.00023414,2]
[378093916,1754724647042,-151.0,0.00023414,2]
[378093917,1754724647052,-151.0,0.00023414,2]
[378093918,1754724647061,-151.0,0.00023414,2]
[378093919,1754724647071,-500.0,0.00023414,2]
[378093920,1754724647080,-151.0,0.00023414,2]
[378093921,1754724647090,-151.0,0.00023414,2]
[378093922,1754724647101,-500.0,0.00023414,2]
[378093923,1754724647111,-151.0,0.00023414,2]
[378093924,1754724647121,-151.0,0.00023414,2]
[378093925,1754724647130,-151.0,0.00023414,2]
[378093926,1754724647139,-151.0,0.00023414,2]
[378093927,1754724647148,-2183.31810187,0.00023414,2]
[378093928,1754724647158,-151.0,0.00023414,2]
[378093929,1754724647167,-151.0,0.00023414,2]
[378093930,1754724647177,-500.0,0.00023414,2]
[378093931,1754724647186,-151.0,0.00023414,2]
[378093932,1754724647196,-151.0,0.00023414,2]
[378093933,1754724647205,-500.0,0.00023414,2]
[378093934,1754724647214,-500.0,0.00023414,2]
[378093935,1754724647224,-151.0,0.00023414,2]
[378093936,1754724647234,-300.0,0.00023414,2]
[378093938,1754724647244,-151.0,0.00023414,2]
[378093939,1754724647253,-151.0,0.00023414,2]
[378093941,1754724647263,-151.0,0.00023414,2]
[378093942,1754724647273,-151.0,0.00023414,2]
[378093943,1754724647283,-15288.14646809,0.00023414,2]
[378093944,1754724647293,-151.0,0.00023414,2]
[378093945,1754724647302,-151.0,0.00023414,2]
[378093946,1754724647312,-151.0,0.00023414,2]
[378093947,1754724647322,-151.0,0.00023414,2]
[378093948,1754724647332,-151.0,0.00023414,2]
[378093950,1754724647342,-151.0,0.00023414,2]
[378093951,1754724647352,-151.0,0.00023414,2]
[378093953,1754724647362,-151.0,0.00023414,2]
[378093955,1754724647372,-151.0,0.00023414,2]
[378093957,1754724647382,-151.0,0.00023414,2]
[378093959,1754724647392,-151.0,0.00023414,2]
[378093960,1754724647401,-151.0,0.00023414,2]
[378093961,1754724647411,-151.0,0.00023414,2]
[378093962,1754724647420,-151.0,0.00023414,2]
[378093963,1754724647430,-500.0,0.00023456,2]
[378093964,1754724647440,-500.0,0.00023456,2]
[378093965,1754724647450,-250.46006549,0.00023481,2]
[378093966,1754724647459,-500.0,0.00023481,2]
[378093967,1754724647469,-151.0,0.000235,8]
[378093968,1754724647478,-153.0,0.00023517,2]
[378093969,1754724647489,-153.0,0.00023517,2]
[378093970,1754724647498,-153.0,0.00023519,2]
[378093971,1754724647508,-153.0,0.00023519,2]
[378093972,1754724647517,-153.0,0.00023519,2]
[378093973,1754724647526,-153.0,0.00023519,2]
[378093974,1754724647536,-593.0,0.00023549,2]
[378093975,1754724647546,-460.0,0.00023561,2]
[378093976,1754724647556,-460.0,0.00023561,2]
[378093977,1754724647567,-460.0,0.00023561,2]
[378093978,1754724647578,-581.22,0.00023561,2]
[378093979,1754724647588,-460.0,0.00023561,2]
[378093980,1754724647599,-460.0,0.00023561,2]
[378093981,1754724647608,-490.57,0.00023561,2]
[378093982,1754724647618,-460.0,0.00023561,2]
[378093983,1754724647628,-460.0,0.00023561,2]
[378093984,1754724647637,-657.82,0.00023561,2]
[378093985,1754724647646,-460.0,0.00023561,2]
[378093986,1754724647656,-460.0,0.00023561,2]
[378093987,1754724647666,-460.0,0.00023561,2]
[378093988,1754724647675,-375.69000028,0.00023561,2]
[378093989,1754724647686,-456.05683111,0.00023561,2]
[378093990,1754724647697,-460.0,0.00023561,2]
[378093991,1754724647707,-966.34,0.00023561,2]
[378093992,1754724647717,-581.49,0.00023561,2]
[378093993,1754724647727,-916.7,0.00023561,2]
[378093994,1754724647736,-895.43,0.00023561,2]
[378093995,1754724647746,-460.0,0.00023561,2]
[378093996,1754724647756,-460.0,0.00023561,2]
[378093997,1754724647765,-460.0,0.00023561,2]
[378093998,1754724647775,-703.52,0.00023561,2]
[378093999,1754724647785,-460.0,0.00023561,2]
[378094000,1754724647794,-496.59,0.00023561,2]
[378094001,1754724647804,-492.1,0.00023561,2]
[378094002,1754724647814,-372.24516569,0.00023561,2]
[378094003,1754724647823,-460.0,0.00023561,2]
[378094004,1754724647833,-460.0,0.00023561,2]
[378094005,1754724647842,-1178.95,0.00023561,2]
[378094006,1754724647852,-537.62,0.00023561,2]
[378094007,1754724647862,-660.18,0.00023561,2]
[378094008,1754724647871,-1596.52,0.00023561,2]
[378094009,1754724647881,-1858.25,0.00023561,2]
[378094010,1754724647891,-3661.51,0.00023561,2]
[378094011,1754724647900,-460.0,0.00023561,2]
[378094012,1754724647910,-460.0,0.00023561,2]
[378094013,1754724647920,-1505.19,0.00023561,2]
[378094014,1754724647929,-460.0,0.00023561,2]
[378094015,1754724647939,-460.0,0.00023561,2]
[378094016,1754724647948,-607.45,0.00023561,2]
[378094017,1754724647958,-460.0,0.00023561,2]
[378094018,1754724647968,-460.0,0.00023561,2]
[378094019,1754724647978,-460.0,0.00023561,2]
[378094020,1754724647988,-460.0,0.00023561,2]
[378094021,1754724647997,-862.76,0.00023561,2]
[378094022,1754724648007,-1636.8,0.00023561,2]
[378094023,1754724648017,-642.42,0.00023561,2]
[378094024,1754724648031,-485.8,0.00023561,2]
[378094025,1754724648042,-460.0,0.00023561,2]
[378094026,1754724648051,-460.0,0.00023561,2]
[378094027,1754724648062,-460.0,0.00023561,2]
[378094028,1754724648072,-1330.45,0.00023561,2]
[378094029,1754724648082,-460.0,0.00023561,2]
[378094030,1754724648092,-460.0,0.00023561,2]
[378094031,1754724648103,-934.32,0.00023561,2]
[378094032,1754724648113,-777.22,0.00023561,2]
[378094033,1754724648123,-1125.8,0.00023561,2]
[378094034,1754724648133,-460.0,0.00023561,2]
[378094035,1754724648143,-460.0,0.00023561,2]
[378094036,1754724648152,-460.0,0.00023561,2]
[378094037,1754724648162,-460.0,0.00023561,2]
[378094038,1754724648171,-1049.54,0.00023561,2]
[378094039,1754724648181,-500.31,0.00023561,2]
[378094040,1754724648191,-2205.13,0.00023561,2]
[378094041,1754724648200,-864.55,0.00023561,2]
[378094042,1754724648210,-595.38,0.00023561,2]
[378094043,1754724648220,-500.0,0.00023569,2]
[378094044,1754724648230,-500.0,0.00023569,2]
[378094045,1754724648240,-500.0,0.00023569,2]
[378094046,1754724648250,-500.0,0.00023569,2]
[378094047,1754724648260,-500.0,0.00023569,2]
[378094048,1754724648269,-500.0,0.00023569,2]
[378094049,1754724648279,-500.0,0.00023569,2]
[378094050,1754724648288,-500.0,0.00023569,2]
[378094051,1754724648298,-500.0,0.00023569,2]
[378094052,1754724648307,-500.0,0.00023569,2]
[378094053,1754724648317,-500.0,0.00023569,2]
[378094054,1754724648327,-500.0,0.00023569,2]
[378094055,1754724648336,-503.13372029,0.00023569,2]
[378094056,1754724648346,-500.0,0.00023569,2]
[378094057,1754724648356,-500.0,0.00023569,2]
[378094058,1754724648366,-500.0,0.00023569,2]
[378094059,1754724648376,-500.0,0.00023569,2]
[378094060,1754724648386,-500.0,0.00023569,2]
[378094061,1754724648395,-392.07726344,0.00023569,2]
[378094062,1754724648406,-500.0,0.00023569,2]
[378094063,1754724648415,-446.95290269,0.00023569,2]
[378094064,1754724648425,-500.0,0.00023569,2]
[378094065,1754724648435,-649.78876618,0.00023569,2]
[378094066,1754724648444,-500.0,0.00023569,2]
[378094067,1754724648454,-500.0,0.00023569,2]
[378094068,1754724648463,-500.0,0.00023569,2]
[378094069,1754724648473,-219.71722395,0.00023569,2]
[378094070,1754724648483,-500.0,0.00023569,2]
[378094071,1754724648492,-500.0,0.00023569,2]
[378094072,1754724648502,-500.0,0.00023569,2]
[378094073,1754724648512,-500.0,0.00023621,2]
[378094074,1754724648523,-1004.42178589,0.00023621,2]
[378094075,1754724648532,-593.0,0.00023656,2]
[378094076,1754724648541,-1764.15740084,0.0002369,2]
[378094077,1754724648551,-151.0,0.000237,5]
[378094078,1754724648560,-150.0,0.00023714,2]
[378094079,1754724648570,-651.210314,0.00023716,7]
[378094080,1754724648579,-651.210314,0.00023716,7]
[378094081,1754724648589,-2000.0,0.00023716,2]
[378094082,1754724648598,-2000.0,0.00023716,2]
[378094083,1754724648608,-2000.0,0.00023716,2]
[378094084,1754724648618,-2000.0,0.00023716,2]
[378094085,1754724648628,-204.87699888,0.00023716,2]
[378094086,1754724649084,-866.41,0.00022191,2]
[378094087,1754724649094,-866.41,0.00022465,2]
[378094088,1754724649104,-866.41,0.00022739,2]
[378094089,1754724649114,-866.41,0.00023013,2]
[378094090,1754724649124,-866.41,0.00023287,2]
[378094091,1754724649134,-250.0,0.00023414,2]
[378094092,1754724649144,-151.0,0.00023414,2]
[378094093,1754724649153,-151.0,0.00023414,2]
[378094094,1754724649163,-151.0,0.00023414,2]
[378094095,1754724649172,-151.0,0.00023414,2]
[378094096,1754724649182,-866.41,0.00023561,2]
[378094097,1754724649192,-1795.12300112,0.00023716,2]
[378094098,1754724649236,-2000.0,0.00023716,2]
[378094099,1754724649245,-2000.0,0.00023716,2]
[378094100,1754724649255,-151.0,0.00023741,7]
[378094101,1754724649264,-197.690065,0.00023741,7]
[378094102,1754724649273,-197.690065,0.00023741,7]
[378094103,1754724649283,-1013.339386,0.00023741,7]
[378094104,1754724649293,-1013.339386,0.00023741,7]
[378094105,1754724649302,-420.0,0.00023811,2]
[378094106,1754724649311,-460.0,0.00023835,2]
[378094107,1754724649321,-460.0,0.00023835,2]
[378094108,1754724649330,-260.2820969,0.00023835,2]
[378094109,1754724649340,-151.57192,0.00023835,7]
[378094110,1754724649349,-174.314987,0.00023835,7]
[378094111,1754724649358,-174.314987,0.00023835,7]
[378094112,1754724649368,-581.22,0.00023835,2]
[378094113,1754724649377,-460.0,0.00023835,2]
[378094114,1754724649386,-490.57,0.00023835,2]
[378094115,1754724649396,-460.0,0.00023835,2]
[378094116,1754724649405,-460.0,0.00023835,2]
[378094117,1754724649414,-657.82,0.00023835,2]
[378094118,1754724649424,-460.0,0.00023835,2]
[378094119,1754724649434,-151.988548,0.00023835,7]
[378094120,1754724649443,-460.0,0.00023835,2]
[378094121,1754724649452,-151.0,0.00023835,7]
[378094122,1754724649462,-460.0,0.00023835,2]
[378094123,1754724649471,-719.11642451,0.00023835,2]
[378094125,1754724674151,311.92413659,0.0003,120]
[378094126,1754724723356,1000.0,0.0002091,2]
[378094127,1754724730811,2459.96375046,0.000199,2]
[378094128,1754724730892,2459.96375037,0.00021655,2]
[378094142,1754724859199,253.14532828,0.00021314,2]
[378094143,1754724872218,10000.0,0.00030137,120]
[378094144,1754724914656,2492.48116357,0.000199,2]
[378094145,1754724914754,2492.48116341,0.00021655,2]
[378094150,1754724961810,20645.68590957,0.00020813,2]
[378094151,1754724961834,4254.31409043,0.00020813,2]
[378094170,1754725075885,476.544485,0.00013699,2]
[378094171,1754725076132,476.544485,0.00020187,2]
[378094172,1754725100269,2382.18956068,0.000199,2]
[378094173,1754725100367,2382.18956066,0.00021655,2]
[378094174,1754725108342,277.56475007,0.00021617,2]
[378094176,1754725160855,168.76355219,0.00021314,2]
[378094177,1754725238588,188.214547,0.00020813,2]
[378094178,1754725245343,10000.0,0.00020811,2]
[378094179,1754725280540,2223.37692336,0.000199,2]
[378094180,1754725280634,2223.37692328,0.00021655,2]
[378094222,1754725414366,49322.99,0.0003168,30]
[378094223,1754725415591,55570.33961501,0.0003168,30]
[378094226,1754725448311,188.8307332,0.00020812,2]
[378094227,1754725459390,2075.1517951,0.000199,2]
[378094228,1754725459508,2075.15179506,0.00021655,2]
[378094229,1754725637759,1936.80834223,0.000199,2]
[378094230,1754725637863,970.97845674,0.00021655,2]
[378094231,1754725637891,965.82988531,0.00021655,2]
[378094257,1754725825625,1807.68778601,0.000199,2]